[Event "Titled Tuesday Blitz April 11 Early 2023"]
[White "Erzhanov, Arman"]
[Black "Bodnaruk, Anastasia"]
[WhiteFideId "4138821"]
[BlackFideId "4181751"]
[WhiteElo "2138"]
[BlackElo "2310"]
[Result "0-1"]
[Round "05"]
[TimeControl "180+2"]
[Date "2023.04.11"]
[WhiteClock "0:00:14"]
[BlackClock "0:00:10"]

1. e4 {[%clk 0:03:00]}  c5 {[%clk 0:02:59]} 2. Nf3 {[%clk 0:03:00]}  d6 {[%clk 0:02:59]} 3. d4 {[%clk 0:02:59]}  cxd4 {[%clk 0:02:59]} 4. Qxd4 {[%clk 0:02:59]}  Nf6 {[%clk 0:03:00]} 5. Be2 {[%clk 0:02:59]}  Nc6 {[%clk 0:02:58]} 6. Qe3 {[%clk 0:02:58]}  g6 {[%clk 0:02:56]} 7. h3 {[%clk 0:02:59]}  Bg7 {[%clk 0:02:56]} 8. O-O {[%clk 0:02:59]}  O-O {[%clk 0:02:56]} 9. Rd1 {[%clk 0:03:00]}  Nd7 {[%clk 0:02:51]} 10. c4 {[%clk 0:03:00]}  b6 {[%clk 0:02:33]} 11. Nc3 {[%clk 0:03:00]}  Bb7 {[%clk 0:02:33]} 12. b3 {[%clk 0:02:56]}  Rc8 {[%clk 0:02:29]} 13. Bb2 {[%clk 0:02:57]}  Nc5 {[%clk 0:02:29]} 14. Rac1 {[%clk 0:02:56]}  Kh8 {[%clk 0:02:20]} 15. Rc2 {[%clk 0:02:54]}  f5 {[%clk 0:02:18]} 16. exf5 {[%clk 0:02:24]}  gxf5 {[%clk 0:02:17]} 17. Nd5 {[%clk 0:02:18]}  e5 {[%clk 0:02:15]} 18. Qg5 {[%clk 0:02:12]}  Qxg5 {[%clk 0:01:42]} 19. Nxg5 {[%clk 0:02:12]}  Nd4 {[%clk 0:01:31]} 20. Bxd4 {[%clk 0:01:58]}  exd4 {[%clk 0:01:31]} 21. Nf4 {[%clk 0:01:56]}  Rce8 {[%clk 0:01:27]} 22. Bf3 {[%clk 0:01:54]}  Ne4 {[%clk 0:01:26]} 23. Nge6 {[%clk 0:01:47]}  Be5 {[%clk 0:01:21]} 24. Bh5 {[%clk 0:01:33]}  Rc8 {[%clk 0:00:36]} 25. Nxf8 {[%clk 0:01:31]}  Rxf8 {[%clk 0:00:34]} 26. Ne6 {[%clk 0:01:21]}  Rg8 {[%clk 0:00:34]} 27. Bf7 {[%clk 0:00:49]}  d3 {[%clk 0:00:33]} 28. Rxd3 {[%clk 0:00:45]}  Nc5 {[%clk 0:00:30]} 29. Bxg8 {[%clk 0:00:38]}  Nxd3 {[%clk 0:00:30]} 30. Bf7 {[%clk 0:00:37]}  Ne1 {[%clk 0:00:25]} 31. f3 {[%clk 0:00:36]}  Nxc2 {[%clk 0:00:24]} 32. Kf2 {[%clk 0:00:35]}  Nd4 {[%clk 0:00:23]} 33. f4 {[%clk 0:00:28]}  Nxe6 {[%clk 0:00:19]} 34. fxe5 {[%clk 0:00:27]}  Ng5 {[%clk 0:00:19]} 35. e6 {[%clk 0:00:13]}  Nxf7 {[%clk 0:00:18]} 36. e7 {[%clk 0:00:14]}  Bc6 {[%clk 0:00:18]} 37. Ke3 {[%clk 0:00:13]}  Kg7 {[%clk 0:00:18]} 38. Kd4 {[%clk 0:00:09]}  Kf6 {[%clk 0:00:17]} 39. b4 {[%clk 0:00:09]}  Kxe7 {[%clk 0:00:16]} 40. g3 {[%clk 0:00:10]}  Ne5 {[%clk 0:00:15]} 41. c5 {[%clk 0:00:10]}  bxc5+ {[%clk 0:00:14]} 42. bxc5 {[%clk 0:00:11]}  Bg2 {[%clk 0:00:15]} 43. cxd6+ {[%clk 0:00:11]}  Kxd6 {[%clk 0:00:15]} 44. h4 {[%clk 0:00:11]}  Ng4 {[%clk 0:00:15]} 45. a4 {[%clk 0:00:11]}  Nf6 {[%clk 0:00:15]} 46. a5 {[%clk 0:00:12]}  Ne4 {[%clk 0:00:15]} 47. Ke3 {[%clk 0:00:12]}  Ke5 {[%clk 0:00:13]} 48. h5 {[%clk 0:00:10]}  Bh1 {[%clk 0:00:13]} 49. h6 {[%clk 0:00:11]}  Nxg3 {[%clk 0:00:13]} 50. a6 {[%clk 0:00:11]}  f4+ {[%clk 0:00:12]} 51. Kf2 {[%clk 0:00:12]}  Ne4+ {[%clk 0:00:13]} 52. Kg1 {[%clk 0:00:12]}  Bf3 {[%clk 0:00:12]} 53. Kf1 {[%clk 0:00:12]}  Bg4 {[%clk 0:00:13]} 54. Kg1 {[%clk 0:00:13]}  Kd4 {[%clk 0:00:13]} 55. Kh2 {[%clk 0:00:13]}  f3 {[%clk 0:00:13]} 56. Kg1 {[%clk 0:00:14]}  f2+ {[%clk 0:00:13]} 57. Kf1 {[%clk 0:00:14]}  Bh3+ {[%clk 0:00:11]} 58. Ke2 {[%clk 0:00:14]}  f1=Q# {[%clk 0:00:10]} 0-1


[Site "https://www.chess.com"]

[Event "Titled Tuesday Blitz April 11 Early 2023"]
[White "Minko, Dmitry"]
[Black "Williams, Simon K"]
[WhiteFideId "24188468"]
[BlackFideId "404454"]
[WhiteElo "2147"]
[BlackElo "2468"]
[Result "0-1"]
[Round "05"]
[TimeControl "180+2"]
[Date "2023.04.11"]
[WhiteClock "0:00:11"]
[BlackClock "0:00:11"]

1. e4 {[%clk 0:03:00]}  c5 {[%clk 0:02:48]} 2. Nf3 {[%clk 0:03:00]}  d6 {[%clk 0:02:43]} 3. d4 {[%clk 0:03:00]}  cxd4 {[%clk 0:02:40]} 4. Nxd4 {[%clk 0:03:01]}  Nf6 {[%clk 0:02:40]} 5. Nc3 {[%clk 0:03:02]}  g6 {[%clk 0:02:40]} 6. Be3 {[%clk 0:03:01]}  a6 {[%clk 0:02:40]} 7. f3 {[%clk 0:03:01]}  Bg7 {[%clk 0:02:38]} 8. Qd2 {[%clk 0:03:02]}  h5 {[%clk 0:02:37]} 9. a4 {[%clk 0:02:51]}  Nc6 {[%clk 0:02:33]} 10. Be2 {[%clk 0:02:48]}  O-O {[%clk 0:02:32]} 11. O-O {[%clk 0:02:48]}  d5 {[%clk 0:02:31]} 12. Nxc6 {[%clk 0:02:38]}  bxc6 {[%clk 0:02:31]} 13. e5 {[%clk 0:02:38]}  Ne8 {[%clk 0:02:23]} 14. f4 {[%clk 0:02:24]}  Rb8 {[%clk 0:02:19]} 15. a5 {[%clk 0:02:15]}  Bf5 {[%clk 0:02:03]} 16. Na4 {[%clk 0:02:03]}  Nc7 {[%clk 0:01:57]} 17. Bd3 {[%clk 0:01:11]}  d4 {[%clk 0:01:41]} 18. Bf2 {[%clk 0:01:07]}  f6 {[%clk 0:01:23]} 19. Bxf5 {[%clk 0:00:49]}  gxf5 {[%clk 0:01:22]} 20. Qxd4 {[%clk 0:00:50]}  fxe5 {[%clk 0:01:19]} 21. fxe5 {[%clk 0:00:48]}  Ne6 {[%clk 0:01:16]} 22. Qc3 {[%clk 0:00:44]}  Qd5 {[%clk 0:01:13]} 23. Rae1 {[%clk 0:00:42]}  Ng5 {[%clk 0:01:01]} 24. Nb6 {[%clk 0:00:39]}  Qe6 {[%clk 0:00:55]} 25. Qc4 {[%clk 0:00:23]}  Qxc4 {[%clk 0:00:51]} 26. Nxc4 {[%clk 0:00:24]}  Ne4 {[%clk 0:00:51]} 27. Bb6 {[%clk 0:00:23]}  Rb7 {[%clk 0:00:31]} 28. Rd1 {[%clk 0:00:21]}  Kh7 {[%clk 0:00:28]} 29. e6 {[%clk 0:00:18]}  Kg6 {[%clk 0:00:27]} 30. Rd7 {[%clk 0:00:18]}  Rfb8 {[%clk 0:00:26]} 31. Rfd1 {[%clk 0:00:16]}  Bf6 {[%clk 0:00:23]} 32. Rxb7 {[%clk 0:00:14]}  Rxb7 {[%clk 0:00:23]} 33. Rd7 {[%clk 0:00:14]}  Rb8 {[%clk 0:00:23]} 34. Ra7 {[%clk 0:00:14]}  f4 {[%clk 0:00:17]} 35. Rxa6 {[%clk 0:00:14]}  Kf5 {[%clk 0:00:18]} 36. Ra7 {[%clk 0:00:14]}  Rg8 {[%clk 0:00:18]} 37. Kf1 {[%clk 0:00:12]}  h4 {[%clk 0:00:18]} 38. Rd7 {[%clk 0:00:10]}  h3 {[%clk 0:00:18]} 39. gxh3 {[%clk 0:00:10]}  f3 {[%clk 0:00:18]} 40. a6 {[%clk 0:00:09]}  Rg2 {[%clk 0:00:17]} 41. a7 {[%clk 0:00:07]}  Rxh2 {[%clk 0:00:17]} 42. a8=Q {[%clk 0:00:07]}  Rh1+ {[%clk 0:00:17]} 43. Bg1 {[%clk 0:00:08]}  f2 {[%clk 0:00:15]} 44. Qa5+ {[%clk 0:00:08]}  Kxe6 {[%clk 0:00:13]} 45. Rxe7+ {[%clk 0:00:02]}  Kxe7 {[%clk 0:00:12]} 46. Qa7+ {[%clk 0:00:02]}  Ke6 {[%clk 0:00:12]} 47. Qxf2 {[%clk 0:00:01]}  Nxf2 {[%clk 0:00:12]} 48. Kxf2 {[%clk 0:00:02]}  Rxh3 {[%clk 0:00:12]} 49. b3 {[%clk 0:00:03]}  Bd4+ {[%clk 0:00:12]} 50. Kg2 {[%clk 0:00:03]}  Rh4 {[%clk 0:00:12]} 51. Bxd4 {[%clk 0:00:03]}  Rxd4 {[%clk 0:00:11]} 52. Kf2 {[%clk 0:00:04]}  Kd5 {[%clk 0:00:11]} 53. Ke3 {[%clk 0:00:04]}  Rh4 {[%clk 0:00:11]} 54. Kd3 {[%clk 0:00:04]}  Rh3+ {[%clk 0:00:12]} 55. Kd2 {[%clk 0:00:05]}  Kd4 {[%clk 0:00:12]} 56. Nd6 {[%clk 0:00:04]}  Rh2+ {[%clk 0:00:12]} 57. Kd1 {[%clk 0:00:03]}  Rh1+ {[%clk 0:00:11]} 58. Kd2 {[%clk 0:00:03]}  Rh2+ {[%clk 0:00:10]} 59. Kd1 {[%clk 0:00:03]}  Kc3 {[%clk 0:00:11]} 60. Ne4+ {[%clk 0:00:04]}  Kb2 {[%clk 0:00:11]} 61. Nd2 {[%clk 0:00:02]}  c5 {[%clk 0:00:10]} 62. Nc4+ {[%clk 0:00:01]}  Kc3 {[%clk 0:00:11]} 63. Ne3 {[%clk 0:00:01]}  Rh3 {[%clk 0:00:07]} 64. Ke2 {[%clk 0:00:01]}  Rxe3+ {[%clk 0:00:04]} 65. Kxe3 {[%clk 0:00:02]}  Kxc2 {[%clk 0:00:05]} 66. Ke2 {[%clk 0:00:01]}  Kxb3 {[%clk 0:00:05]} 67. Kd2 {[%clk 0:00:02]}  Kb2 {[%clk 0:00:05]} 68. Kd3 {[%clk 0:00:02]}  Kb3 {[%clk 0:00:05]} 69. Kd2 {[%clk 0:00:03]}  c4 {[%clk 0:00:06]} 70. Kc1 {[%clk 0:00:02]}  Kc3 {[%clk 0:00:06]} 71. Kd1 {[%clk 0:00:03]}  Kb2 {[%clk 0:00:07]} 72. Kd2 {[%clk 0:00:04]}  c3+ {[%clk 0:00:08]} 73. Kd3 {[%clk 0:00:05]}  c2 {[%clk 0:00:08]} 74. Ke2 {[%clk 0:00:06]}  c1=Q {[%clk 0:00:09]} 75. Kf3 {[%clk 0:00:06]}  Kc3 {[%clk 0:00:09]} 76. Ke4 {[%clk 0:00:07]}  Qd2 {[%clk 0:00:09]} 77. Kf5 {[%clk 0:00:08]}  Kd4 {[%clk 0:00:09]} 78. Ke6 {[%clk 0:00:09]}  Qe3+ {[%clk 0:00:10]} 79. Kf7 {[%clk 0:00:10]}  Qe5 {[%clk 0:00:10]} 80. Kg6 {[%clk 0:00:10]}  Ke4 {[%clk 0:00:10]} 81. Kf7 {[%clk 0:00:10]}  Qd6 {[%clk 0:00:10]} 82. Kg7 {[%clk 0:00:10]}  Kf5 {[%clk 0:00:11]} 83. Kf7 {[%clk 0:00:10]}  Qd7+ {[%clk 0:00:10]} 84. Kg8 {[%clk 0:00:11]}  Kg6 {[%clk 0:00:11]} 0-1


[Site "https://www.chess.com"]

[Event "Titled Tuesday Blitz April 11 Early 2023"]
[White "Vlassov, Nikolai"]
[Black "Chernomordik, Pavel"]
[WhiteFideId "4103360"]
[BlackFideId "2804530"]
[WhiteElo "2324"]
[BlackElo "2193"]
[Result "1-0"]
[Round "05"]
[TimeControl "180+2"]
[Date "2023.04.11"]
[WhiteClock "0:00:21"]
[BlackClock "0:00:02"]

1. e4 {[%clk 0:03:00]}  g6 {[%clk 0:02:59]} 2. Nc3 {[%clk 0:03:00]}  Bg7 {[%clk 0:02:58]} 3. h4 {[%clk 0:03:00]}  h6 {[%clk 0:02:56]} 4. d4 {[%clk 0:02:59]}  d6 {[%clk 0:02:54]} 5. h5 {[%clk 0:02:59]}  g5 {[%clk 0:02:54]} 6. f4 {[%clk 0:02:59]}  gxf4 {[%clk 0:02:52]} 7. Bxf4 {[%clk 0:03:00]}  Nc6 {[%clk 0:02:50]} 8. Nf3 {[%clk 0:02:52]}  Bg4 {[%clk 0:02:47]} 9. d5 {[%clk 0:02:53]}  Nd4 {[%clk 0:02:33]} 10. Qd3 {[%clk 0:02:41]}  c5 {[%clk 0:02:22]} 11. O-O-O {[%clk 0:02:31]}  a6 {[%clk 0:02:12]} 12. Re1 {[%clk 0:02:14]}  Qa5 {[%clk 0:02:03]} 13. Kb1 {[%clk 0:01:57]}  O-O-O {[%clk 0:01:44]} 14. Bd2 {[%clk 0:01:31]}  Qb6 {[%clk 0:01:24]} 15. Nh4 {[%clk 0:01:16]}  Nf6 {[%clk 0:01:16]} 16. Na4 {[%clk 0:01:04]}  Qc7 {[%clk 0:00:59]} 17. c3 {[%clk 0:01:01]}  Nb5 {[%clk 0:00:57]} 18. Nf5 {[%clk 0:00:51]}  Bxf5 {[%clk 0:00:51]} 19. exf5 {[%clk 0:00:52]}  Rhg8 {[%clk 0:00:35]} 20. Be2 {[%clk 0:00:50]}  Kb8 {[%clk 0:00:25]} 21. g4 {[%clk 0:00:50]}  Nd7 {[%clk 0:00:22]} 22. Bd1 {[%clk 0:00:45]}  Ne5 {[%clk 0:00:20]} 23. Qf1 {[%clk 0:00:42]}  Na7 {[%clk 0:00:18]} 24. b3 {[%clk 0:00:39]}  b5 {[%clk 0:00:17]} 25. Nb2 {[%clk 0:00:39]}  Bf8 {[%clk 0:00:16]} 26. Rg1 {[%clk 0:00:36]}  Nc8 {[%clk 0:00:16]} 27. Nd3 {[%clk 0:00:35]}  Nd7 {[%clk 0:00:13]} 28. g5 {[%clk 0:00:33]}  hxg5 {[%clk 0:00:11]} 29. Bxg5 {[%clk 0:00:31]}  Ndb6 {[%clk 0:00:10]} 30. Bf3 {[%clk 0:00:25]}  c4 {[%clk 0:00:09]} 31. Nb4 {[%clk 0:00:25]}  Ka7 {[%clk 0:00:08]} 32. Nc6+ {[%clk 0:00:25]}  Ka8 {[%clk 0:00:07]} 33. Nxd8 {[%clk 0:00:24]}  Qxd8 {[%clk 0:00:07]} 34. Be3 {[%clk 0:00:24]}  Rxg1 {[%clk 0:00:05]} 35. Qxg1 {[%clk 0:00:24]}  cxb3 {[%clk 0:00:03]} 36. axb3 {[%clk 0:00:24]}  Qc7 {[%clk 0:00:04]} 37. Kb2 {[%clk 0:00:23]}  Nd7 {[%clk 0:00:03]} 38. h6 {[%clk 0:00:23]}  Ne5 {[%clk 0:00:02]} 39. Be2 {[%clk 0:00:21]} 1-0


[Site "https://www.chess.com"]

[Event "Titled Tuesday Blitz April 11 Early 2023"]
[White "Yosha_Iglesias"]
[Black "KRUMMEL2008"]
[WhiteElo "2458"]
[BlackElo "2600"]
[Result "1-0"]
[Round "05"]
[TimeControl "180+2"]
[Date "2023.04.11"]
[WhiteClock "0:00:19"]
[BlackClock "0:00:18"]

1. d4 {[%clk 0:03:00]}  Nf6 {[%clk 0:02:59]} 2. Nf3 {[%clk 0:03:00]}  g6 {[%clk 0:02:59]} 3. Bf4 {[%clk 0:02:58]}  Bg7 {[%clk 0:03:00]} 4. c3 {[%clk 0:02:58]}  O-O {[%clk 0:03:00]} 5. Nbd2 {[%clk 0:02:59]}  d6 {[%clk 0:02:59]} 6. e4 {[%clk 0:02:59]}  Nbd7 {[%clk 0:02:13]} 7. Be2 {[%clk 0:02:53]}  b6 {[%clk 0:02:05]} 8. O-O {[%clk 0:02:42]}  Bb7 {[%clk 0:02:04]} 9. Qc2 {[%clk 0:02:33]}  e5 {[%clk 0:02:04]} 10. dxe5 {[%clk 0:02:29]}  dxe5 {[%clk 0:02:05]} 11. Bg5 {[%clk 0:02:15]}  h6 {[%clk 0:01:54]} 12. Bh4 {[%clk 0:02:14]}  Qe8 {[%clk 0:01:54]} 13. b4 {[%clk 0:02:07]}  Nh5 {[%clk 0:01:51]} 14. Rfe1 {[%clk 0:02:02]}  Kh8 {[%clk 0:01:48]} 15. Rad1 {[%clk 0:01:50]}  Nf4 {[%clk 0:01:21]} 16. Bf1 {[%clk 0:01:47]}  Nf6 {[%clk 0:01:21]} 17. Nc4 {[%clk 0:01:31]}  N6h5 {[%clk 0:01:09]} 18. Rd2 {[%clk 0:01:04]}  Qe6 {[%clk 0:00:59]} 19. Ne3 {[%clk 0:00:59]}  f5 {[%clk 0:00:53]} 20. Bc4 {[%clk 0:00:59]}  Qc8 {[%clk 0:00:47]} 21. Nd5 {[%clk 0:00:57]}  Nxd5 {[%clk 0:00:37]} 22. Bxd5 {[%clk 0:00:47]}  g5 {[%clk 0:00:37]} 23. Bxg5 {[%clk 0:00:23]}  hxg5 {[%clk 0:00:32]} 24. Bxb7 {[%clk 0:00:20]}  Qxb7 {[%clk 0:00:32]} 25. Nxg5 {[%clk 0:00:21]}  fxe4 {[%clk 0:00:28]} 26. Rxe4 {[%clk 0:00:20]}  Nf4 {[%clk 0:00:25]} 27. Rxf4 {[%clk 0:00:20]}  e4 {[%clk 0:00:18]} 28. Rh4+ {[%clk 0:00:18]}  Kg8 {[%clk 0:00:18]} 29. Qb3+ {[%clk 0:00:19]} 1-0


[Site "https://www.chess.com"]

[Event "Titled Tuesday Blitz April 11 Early 2023"]
[White "Pniaczek, Marek"]
[Black "Kucuksari, Kaan"]
[WhiteFideId "21800421"]
[BlackFideId "6380166"]
[WhiteElo "2138"]
[BlackElo "2364"]
[Result "0-1"]
[Round "05"]
[TimeControl "180+2"]
[Date "2023.04.11"]
[WhiteClock "0:01:03"]
[BlackClock "0:01:29"]

1. e4 {[%clk 0:02:58]}  e5 {[%clk 0:02:57]} 2. Nf3 {[%clk 0:02:58]}  Nc6 {[%clk 0:02:57]} 3. Bc4 {[%clk 0:02:58]}  Bc5 {[%clk 0:02:53]} 4. c3 {[%clk 0:02:57]}  Nf6 {[%clk 0:02:53]} 5. d3 {[%clk 0:02:57]}  O-O {[%clk 0:02:49]} 6. O-O {[%clk 0:02:57]}  d6 {[%clk 0:02:48]} 7. h3 {[%clk 0:02:49]}  a6 {[%clk 0:02:38]} 8. a4 {[%clk 0:02:43]}  h6 {[%clk 0:02:32]} 9. Re1 {[%clk 0:02:40]}  Ba7 {[%clk 0:02:27]} 10. Nbd2 {[%clk 0:02:13]}  Ne7 {[%clk 0:02:20]} 11. Nf1 {[%clk 0:01:58]}  Ng6 {[%clk 0:02:18]} 12. Ng3 {[%clk 0:01:56]}  c6 {[%clk 0:02:15]} 13. Bb3 {[%clk 0:01:54]}  Re8 {[%clk 0:01:49]} 14. Nh2 {[%clk 0:01:34]}  d5 {[%clk 0:01:41]} 15. Qf3 {[%clk 0:01:32]}  Be6 {[%clk 0:01:39]} 16. Bc2 {[%clk 0:01:23]}  Qd7 {[%clk 0:01:38]} 17. Bxh6 {[%clk 0:01:16]}  Nh4 {[%clk 0:01:29]} 18. Qe3 {[%clk 0:01:03]}  Bxe3 {[%clk 0:01:29]} 0-1


[Site "https://www.chess.com"]

[Event "Titled Tuesday Blitz April 11 Early 2023"]
[White "Jain Kashish Manoj"]
[Black "Baches Garcia, Guillermo"]
[WhiteFideId "35081098"]
[BlackFideId "2209764"]
[WhiteElo "2191"]
[BlackElo "2457"]
[Result "1-0"]
[Round "05"]
[TimeControl "180+2"]
[Date "2023.04.11"]
[WhiteClock "0:00:06"]
[BlackClock "0:00:13"]

1. Nf3 {[%clk 0:03:00]}  d5 {[%clk 0:02:58]} 2. g3 {[%clk 0:03:01]}  g6 {[%clk 0:02:58]} 3. Bg2 {[%clk 0:03:02]}  Bg7 {[%clk 0:02:58]} 4. O-O {[%clk 0:03:02]}  e5 {[%clk 0:02:59]} 5. d3 {[%clk 0:03:03]}  Ne7 {[%clk 0:02:58]} 6. e4 {[%clk 0:03:03]}  Nbc6 {[%clk 0:02:58]} 7. Nbd2 {[%clk 0:03:02]}  O-O {[%clk 0:02:56]} 8. a4 {[%clk 0:02:44]}  a5 {[%clk 0:02:55]} 9. c3 {[%clk 0:02:44]}  h6 {[%clk 0:02:53]} 10. Re1 {[%clk 0:02:42]}  Be6 {[%clk 0:02:51]} 11. Qe2 {[%clk 0:02:40]}  g5 {[%clk 0:02:49]} 12. Nf1 {[%clk 0:02:25]}  f5 {[%clk 0:02:38]} 13. exf5 {[%clk 0:01:40]}  Bxf5 {[%clk 0:02:22]} 14. h4 {[%clk 0:01:38]}  g4 {[%clk 0:02:02]} 15. N3h2 {[%clk 0:01:36]}  h5 {[%clk 0:01:51]} 16. Bg5 {[%clk 0:01:36]}  Qd7 {[%clk 0:01:49]} 17. f3 {[%clk 0:01:08]}  gxf3 {[%clk 0:01:37]} 18. Bxf3 {[%clk 0:01:09]}  Bh3 {[%clk 0:01:13]} 19. Bxh5 {[%clk 0:01:00]}  e4 {[%clk 0:01:02]} 20. dxe4 {[%clk 0:00:55]}  d4 {[%clk 0:00:57]} 21. Rad1 {[%clk 0:00:48]}  Rad8 {[%clk 0:00:46]} 22. Bg4 {[%clk 0:00:16]}  Bxg4 {[%clk 0:00:45]} 23. Qxg4 {[%clk 0:00:10]}  Qxg4 {[%clk 0:00:39]} 24. Nxg4 {[%clk 0:00:11]}  dxc3 {[%clk 0:00:39]} 25. bxc3 {[%clk 0:00:09]}  Bxc3 {[%clk 0:00:38]} 26. Rxd8 {[%clk 0:00:09]}  Rxd8 {[%clk 0:00:37]} 27. Rc1 {[%clk 0:00:09]}  Bd4+ {[%clk 0:00:30]} 28. Kg2 {[%clk 0:00:09]}  Rf8 {[%clk 0:00:30]} 29. Nfe3 {[%clk 0:00:08]}  Ng6 {[%clk 0:00:24]} 30. Nf5 {[%clk 0:00:08]}  Bh8 {[%clk 0:00:19]} 31. Rf1 {[%clk 0:00:05]}  Re8 {[%clk 0:00:19]} 32. Nfh6+ {[%clk 0:00:05]}  Kh7 {[%clk 0:00:16]} 33. Rf7+ {[%clk 0:00:05]}  Bg7 {[%clk 0:00:16]} 34. Nf6+ {[%clk 0:00:06]}  Kh8 {[%clk 0:00:13]} 35. Nxe8 {[%clk 0:00:06]} 1-0


[Site "https://www.chess.com"]

[Event "Titled Tuesday Blitz April 11 Early 2023"]
[White "Gold_Ocean"]
[Black "Leyva Rivera, Yunier"]
[BlackFideId "3505065"]
[WhiteElo "2594"]
[BlackElo "2430"]
[Result "0-1"]
[Round "05"]
[TimeControl "180+2"]
[Date "2023.04.11"]
[WhiteClock "0:00:11"]
[BlackClock "0:00:10"]

1. Nf3 {[%clk 0:03:00]}  c5 {[%clk 0:02:59]} 2. g3 {[%clk 0:03:01]}  g6 {[%clk 0:02:59]} 3. Bg2 {[%clk 0:03:01]}  Bg7 {[%clk 0:02:59]} 4. O-O {[%clk 0:03:02]}  Nc6 {[%clk 0:02:59]} 5. d3 {[%clk 0:03:02]}  Nf6 {[%clk 0:02:58]} 6. e4 {[%clk 0:03:03]}  d6 {[%clk 0:02:57]} 7. Nbd2 {[%clk 0:03:03]}  O-O {[%clk 0:02:58]} 8. Re1 {[%clk 0:03:03]}  Bg4 {[%clk 0:02:47]} 9. c3 {[%clk 0:03:03]}  Rb8 {[%clk 0:02:46]} 10. h3 {[%clk 0:03:03]}  Bxf3 {[%clk 0:02:46]} 11. Nxf3 {[%clk 0:03:02]}  b5 {[%clk 0:02:46]} 12. Be3 {[%clk 0:03:01]}  b4 {[%clk 0:02:46]} 13. Qd2 {[%clk 0:02:59]}  bxc3 {[%clk 0:02:46]} 14. bxc3 {[%clk 0:03:00]}  Qa5 {[%clk 0:02:45]} 15. Rad1 {[%clk 0:02:59]}  Rb6 {[%clk 0:02:28]} 16. Rc1 {[%clk 0:02:38]}  Rfb8 {[%clk 0:02:28]} 17. Rc2 {[%clk 0:02:38]}  Nd7 {[%clk 0:02:12]} 18. Rec1 {[%clk 0:02:26]}  Rb1 {[%clk 0:01:53]} 19. Kh2 {[%clk 0:02:22]}  Rxc1 {[%clk 0:01:52]} 20. Qxc1 {[%clk 0:02:22]}  Nde5 {[%clk 0:01:47]} 21. Nxe5 {[%clk 0:02:17]}  Nxe5 {[%clk 0:01:48]} 22. Qd1 {[%clk 0:02:16]}  c4 {[%clk 0:01:39]} 23. d4 {[%clk 0:02:11]}  Nd3 {[%clk 0:01:39]} 24. Bf1 {[%clk 0:02:10]}  Qa6 {[%clk 0:01:20]} 25. Rd2 {[%clk 0:02:02]}  Qb7 {[%clk 0:01:11]} 26. f3 {[%clk 0:01:46]}  d5 {[%clk 0:01:02]} 27. e5 {[%clk 0:01:38]}  Nb2 {[%clk 0:00:53]} 28. Qc2 {[%clk 0:01:32]}  e6 {[%clk 0:00:52]} 29. f4 {[%clk 0:01:11]}  Qb5 {[%clk 0:00:39]} 30. Re2 {[%clk 0:00:46]}  Nd3 {[%clk 0:00:36]} 31. Rd2 {[%clk 0:00:42]}  Nb2 {[%clk 0:00:32]} 32. g4 {[%clk 0:00:38]}  Bh6 {[%clk 0:00:32]} 33. Kg3 {[%clk 0:00:34]}  Qa4 {[%clk 0:00:29]} 34. Be2 {[%clk 0:00:17]}  a5 {[%clk 0:00:24]} 35. Qxa4 {[%clk 0:00:14]}  Nxa4 {[%clk 0:00:25]} 36. Rc2 {[%clk 0:00:14]}  Rb1 {[%clk 0:00:21]} 37. Bc1 {[%clk 0:00:14]}  Kf8 {[%clk 0:00:18]} 38. h4 {[%clk 0:00:09]}  Ke8 {[%clk 0:00:19]} 39. Kf2 {[%clk 0:00:06]}  Kd7 {[%clk 0:00:17]} 40. Ke3 {[%clk 0:00:06]}  Kc6 {[%clk 0:00:16]} 41. g5 {[%clk 0:00:05]}  Bf8 {[%clk 0:00:15]} 42. Bd1 {[%clk 0:00:05]}  Kb5 {[%clk 0:00:14]} 43. Kd2 {[%clk 0:00:04]}  Be7 {[%clk 0:00:13]} 44. Ke3 {[%clk 0:00:04]}  Bd8 {[%clk 0:00:11]} 45. Bf3 {[%clk 0:00:04]}  Be7 {[%clk 0:00:11]} 46. Be2 {[%clk 0:00:03]}  Bf8 {[%clk 0:00:10]} 47. h5 {[%clk 0:00:04]}  Be7 {[%clk 0:00:09]} 48. hxg6 {[%clk 0:00:04]}  hxg6 {[%clk 0:00:10]} 49. Bd1 {[%clk 0:00:05]}  Bf8 {[%clk 0:00:10]} 50. Bg4 {[%clk 0:00:06]}  Be7 {[%clk 0:00:10]} 51. Bh3 {[%clk 0:00:06]}  Bf8 {[%clk 0:00:11]} 52. Bf1 {[%clk 0:00:07]}  Be7 {[%clk 0:00:10]} 53. Kd2 {[%clk 0:00:07]}  Nb6 {[%clk 0:00:11]} 54. Be2 {[%clk 0:00:07]}  Na4 {[%clk 0:00:11]} 55. Bd1 {[%clk 0:00:07]}  Bf8 {[%clk 0:00:10]} 56. Ke3 {[%clk 0:00:04]}  Be7 {[%clk 0:00:10]} 57. Ke2 {[%clk 0:00:05]}  Bf8 {[%clk 0:00:11]} 58. Bd2 {[%clk 0:00:05]}  Ba3 {[%clk 0:00:10]} 59. Be3 {[%clk 0:00:04]}  Rb2 {[%clk 0:00:10]} 60. Kd2 {[%clk 0:00:03]}  Rxc2+ {[%clk 0:00:10]} 61. Kxc2 {[%clk 0:00:04]}  Bb2 {[%clk 0:00:10]} 62. Bd2 {[%clk 0:00:04]}  Ba3 {[%clk 0:00:10]} 63. Kb1 {[%clk 0:00:04]}  Be7 {[%clk 0:00:09]} 64. Kc2 {[%clk 0:00:04]}  Bf8 {[%clk 0:00:09]} 65. Bf3 {[%clk 0:00:05]}  Be7 {[%clk 0:00:09]} 66. Bc1 {[%clk 0:00:05]}  Nb6 {[%clk 0:00:10]} 67. Bd1 {[%clk 0:00:05]}  Nd7 {[%clk 0:00:10]} 68. Kb2 {[%clk 0:00:05]}  Nb8 {[%clk 0:00:10]} 69. Bf3 {[%clk 0:00:04]}  a4 {[%clk 0:00:11]} 70. Kc2 {[%clk 0:00:04]}  Nc6 {[%clk 0:00:11]} 71. Kd2 {[%clk 0:00:03]}  Bf8 {[%clk 0:00:11]} 72. Ke2 {[%clk 0:00:04]}  Be7 {[%clk 0:00:11]} 73. Kf2 {[%clk 0:00:04]}  Bf8 {[%clk 0:00:11]} 74. Kg3 {[%clk 0:00:05]}  Be7 {[%clk 0:00:12]} 75. Bd1 {[%clk 0:00:05]}  Bf8 {[%clk 0:00:12]} 76. Kf3 {[%clk 0:00:06]}  Be7 {[%clk 0:00:13]} 77. Ke2 {[%clk 0:00:07]}  Bf8 {[%clk 0:00:13]} 78. Kf3 {[%clk 0:00:04]}  Nb8 {[%clk 0:00:13]} 79. f5 {[%clk 0:00:03]}  exf5 {[%clk 0:00:13]} 80. Kf4 {[%clk 0:00:04]}  Be7 {[%clk 0:00:12]} 81. Bf3 {[%clk 0:00:04]}  Kc6 {[%clk 0:00:12]} 82. Ke3 {[%clk 0:00:04]}  Nd7 {[%clk 0:00:11]} 83. Kf4 {[%clk 0:00:04]}  Nf8 {[%clk 0:00:11]} 84. Kg3 {[%clk 0:00:02]}  Ne6 {[%clk 0:00:11]} 85. Kh4 {[%clk 0:00:03]}  Bd8 {[%clk 0:00:11]} 86. Kg3 {[%clk 0:00:03]}  Ba5 {[%clk 0:00:11]} 87. Bd2 {[%clk 0:00:02]}  Nxd4 {[%clk 0:00:12]} 88. cxd4 {[%clk 0:00:02]}  Bxd2 {[%clk 0:00:13]} 89. Kh4 {[%clk 0:00:02]}  Be3 {[%clk 0:00:13]} 90. Bd1 {[%clk 0:00:03]}  Bxd4 {[%clk 0:00:13]} 91. Bxa4+ {[%clk 0:00:04]}  Kc7 {[%clk 0:00:11]} 92. Be8 {[%clk 0:00:05]}  c3 {[%clk 0:00:11]} 93. Ba4 {[%clk 0:00:04]}  Bxe5 {[%clk 0:00:11]} 94. Bc2 {[%clk 0:00:04]}  Kd6 {[%clk 0:00:11]} 95. Kh3 {[%clk 0:00:05]}  Bf4 {[%clk 0:00:10]} 96. Kg2 {[%clk 0:00:05]}  Bxg5 {[%clk 0:00:11]} 97. Kf3 {[%clk 0:00:06]}  Ke5 {[%clk 0:00:11]} 98. Ke2 {[%clk 0:00:07]}  Bf4 {[%clk 0:00:11]} 99. Kd3 {[%clk 0:00:08]}  g5 {[%clk 0:00:12]} 100. a4 {[%clk 0:00:09]}  g4 {[%clk 0:00:12]} 101. a5 {[%clk 0:00:10]}  Bh2 {[%clk 0:00:11]} 102. Ke2 {[%clk 0:00:07]}  Bg1 {[%clk 0:00:12]} 103. Kf1 {[%clk 0:00:08]}  Ba7 {[%clk 0:00:10]} 104. Bd3 {[%clk 0:00:08]}  f4 {[%clk 0:00:09]} 105. Kg2 {[%clk 0:00:08]}  f5 {[%clk 0:00:09]} 106. Bc2 {[%clk 0:00:09]}  f3+ {[%clk 0:00:08]} 107. Kf1 {[%clk 0:00:09]}  g3 {[%clk 0:00:08]} 108. a6 {[%clk 0:00:10]}  g2+ {[%clk 0:00:09]} 109. Ke1 {[%clk 0:00:11]}  g1=Q# {[%clk 0:00:10]} 0-1


[Site "https://www.chess.com"]